fUST/lending_fUST_20260109
["ID","MTS","AMOUNT","RATE_DAILY","PERIOD"]
[401057668,1767895845927,-1500.0,0.00014644,2]
[401057670,1767895845937,-151.0,0.00014644,2]
[401057672,1767895845949,-1500.0,0.00014644,2]
[401057674,1767895845958,-250.0,0.00014644,2]
[401057676,1767895845968,-1500.0,0.00014644,2]
[401057678,1767895845977,-250.0,0.00014644,2]
[401057680,1767895845987,-1500.0,0.00014644,2]
[401057682,1767895845997,-250.0,0.00014644,2]
[401057684,1767895846007,-1500.0,0.00014644,2]
[401057686,1767895846016,-250.0,0.00014644,2]
[401057688,1767895846025,-1500.0,0.00014644,2]
[401057690,1767895846035,-2487.15318209,0.00014644,2]
[401057692,1767895846045,-250.0,0.00014644,2]
[401057694,1767895846054,-1500.0,0.00014644,2]
[401057696,1767895846064,-250.0,0.00014644,2]
[401057698,1767895846073,-514.84070869,0.00014644,2]
[401057701,1767895846083,-250.0,0.00014644,2]
[401057702,1767895846093,-250.0,0.00014644,2]
[401057705,1767895846103,-2105.41764886,0.00014699,2]
[401057707,1767895846112,-2183.31810187,0.00014754,2]
[401057708,1767895846121,-900.0,0.00014768,2]
[401057711,1767895846131,-1160.9556774,0.00014795,2]
[401057712,1767895846141,-1500.0,0.00014795,2]
[401057715,1767895846150,-1501.75744597,0.00014795,2]
[401057716,1767895846159,-1469.53593685,0.00014795,2]
[401057719,1767895846169,-1500.0,0.00014795,2]
[401057721,1767895846179,-1500.0,0.00014795,2]
[401057723,1767895846188,-1501.33075681,0.00014795,2]
[401057725,1767895846198,-671.21056223,0.00014795,2]
[401057727,1767895846207,-504.856401,0.00014795,2]
[401057729,1767895846216,-1500.0,0.00014795,2]
[401057731,1767895846226,-1500.0,0.00014795,2]
[401057733,1767895846235,-1500.0,0.00014795,2]
[401057735,1767895846245,-1500.0,0.00014795,2]
[401057737,1767895846255,-350.0,0.00014795,2]
[401057739,1767895846265,-928.80611253,0.00014795,2]
[401057741,1767895846274,-1500.0,0.00014795,2]
[401057743,1767895846283,-1500.0,0.00014795,2]
[401057745,1767895846297,-1500.0,0.00014795,2]
[401057747,1767895846307,-1500.0,0.00014795,2]
[401057749,1767895846317,-1500.0,0.00014795,2]
[401057751,1767895846326,-580.84036522,0.00014795,2]
[401057752,1767895846336,-852.55903874,0.00014795,2]
[401057754,1767895846346,-500.54648237,0.00014795,2]
[401057756,1767895846357,-1500.0,0.00014795,2]
[401057759,1767895846367,-1500.0,0.00014795,2]
[401057761,1767895846378,-1500.0,0.00014795,2]
[401057763,1767895846387,-1500.0,0.00014795,2]
[401057765,1767895846397,-1500.0,0.00014795,2]
[401057767,1767895846407,-1000.57472158,0.00014795,2]
[401057769,1767895846418,-192.36614921,0.00014795,2]
[401057771,1767895846428,-1500.0,0.00014795,2]
[401057773,1767895846437,-1500.0,0.00014795,2]
[401057775,1767895846446,-1500.0,0.00014795,2]
[401057777,1767895846457,-1500.0,0.00014795,2]
[401057779,1767895846467,-1500.0,0.00014795,2]
[401057781,1767895846478,-1500.0,0.00014795,2]
[401057783,1767895846488,-1500.0,0.00014795,2]
[401057785,1767895846499,-1500.0,0.00014795,2]
[401057787,1767895846509,-1500.0,0.00014795,2]
[401057789,1767895846519,-1146.05055977,0.00014795,2]
[401057791,1767895846529,-1500.0,0.00014795,2]
[401057793,1767895846539,-607.41040289,0.00014795,2]
[401057795,1767895846549,-1500.0,0.00014795,2]
[401057797,1767895846559,-1500.0,0.00014795,2]
[401057799,1767895846568,-1018.32057392,0.00014795,2]
[401057801,1767895846578,-1500.0,0.00014795,2]
[401057803,1767895846588,-874.8306527,0.00014795,2]
[401057805,1767895846598,-1501.8641087,0.00014795,2]
[401057807,1767895846608,-158.42695307,0.00014795,2]
[401057809,1767895846618,-1500.0,0.00014795,2]
[401057811,1767895846628,-1500.0,0.00014795,2]
[401057814,1767895846643,-2264.10087164,0.00014809,2]
[401057816,1767895846658,-1000.0,0.00014853,2]
[401057818,1767895846669,-492.0,0.00014853,2]
[401057820,1767895846680,-2347.87260389,0.00014864,2]
[401057823,1767895846692,-928.52044379,0.00014916,2]
[401057825,1767895846703,-1982.69771169,0.00014916,2]
[401057836,1767895846800,-651.97322479,0.00014916,2]
[401057838,1767895846810,-1512.87309708,0.00014916,2]
[401057840,1767895846819,-2000.0,0.00014916,2]
[401057842,1767895846828,-2000.0,0.00014916,2]
[401057844,1767895846838,-2000.0,0.00014916,2]
[401057846,1767895846847,-2000.0,0.00014916,2]
[401057847,1767895846856,-485.49285484,0.00014916,2]
[401057849,1767895846866,-2000.0,0.00014916,2]
[401057852,1767895846877,-2000.0,0.00014916,2]
[401057854,1767895846886,-2000.0,0.00014916,2]
[401057856,1767895846896,-2000.0,0.00014916,2]
[401057858,1767895846905,-1783.80150252,0.00014916,2]
[401057860,1767895846914,-2000.0,0.00014916,2]
[401057862,1767895846925,-1526.2364852,0.00014916,2]
[401057864,1767895846935,-610.58225543,0.00014916,2]
[401057866,1767895846945,-2000.0,0.00014916,2]
[401057868,1767895846955,-2000.0,0.00014916,2]
[401057870,1767895846964,-1301.92776876,0.00014916,2]
[401057872,1767895846974,-1370.82057374,0.00014916,2]
[401057874,1767895846983,-1215.59305316,0.00014916,2]
[401057876,1767895846993,-2000.0,0.00014916,2]
[401057878,1767895847004,-2000.0,0.00014916,2]
[401057880,1767895847014,-500.98834763,0.00014916,2]
[401057882,1767895847024,-2434.74389024,0.00014919,2]
[401057884,1767895847033,-5502.30604584,0.00014962,2]
[401057885,1767895847043,-2524.82941417,0.00014974,2]
[401057886,1767895847053,-100000.0,0.00015028,2]
[401057887,1767895847062,-2618.2481025,0.00015029,2]
[401057888,1767895847072,-648.777651,0.00015068,2]
[401057889,1767895847082,-800.0,0.00015068,2]
[401057890,1767895847091,-2545.42955254,0.00015084,2]
[401057891,1767895847101,-31110.0,0.00015192,2]
[401057893,1767895847112,-151.0,0.00015192,2]
[401057895,1767895847122,-194.72792766,0.00015192,2]
[401057897,1767895847131,-1093.27707489,0.00015192,2]
[401057899,1767895847141,-2579.17784983,0.00015192,2]
[401057901,1767895847150,-533.88981491,0.00015192,2]
[401057903,1767895847159,-1200.0,0.00015316,2]
[401057905,1767895847168,-602.53259662,0.00015342,2]
[401057907,1767895847178,-619.88473834,0.00015342,2]
[401057909,1767895847188,-2000.0,0.00015342,2]
[401057911,1767895847197,-2000.0,0.00015342,2]
[401057913,1767895847207,-1505.51755244,0.00015342,2]
[401057915,1767895847217,-2000.0,0.00015342,2]
[401057917,1767895847227,-2000.0,0.00015342,2]
[401057919,1767895847237,-542.93732994,0.00015342,2]
[401057921,1767895847246,-1474.34002557,0.00015342,2]
[401057923,1767895847256,-2000.0,0.00015342,2]
[401057926,1767895847267,-503.14554213,0.00015342,2]
[401057927,1767895847276,-2000.0,0.00015342,2]
[401057929,1767895847287,-2000.0,0.00015342,2]
[401057931,1767895847298,-171.82162916,0.00015342,2]
[401057934,1767895847309,-730.23234032,0.00015342,2]
[401057936,1767895847320,-1029.61129365,0.00015342,2]
[401057938,1767895847331,-500.68920715,0.00015342,2]
[401057940,1767895847342,-2000.0,0.00015342,2]
[401057942,1767895847353,-1002.96437935,0.00015342,2]
[401057944,1767895847363,-2000.0,0.00015342,2]
[401057946,1767895847374,-1482.84709438,0.00015342,2]
[401057947,1767895847385,-2004.51727604,0.00015342,2]
[401057950,1767895847395,-2000.0,0.00015342,2]
[401057952,1767895847407,-1506.84567032,0.00015342,2]
[401057954,1767895847418,-1786.81506182,0.00015342,2]
[401057956,1767895847430,-2000.0,0.00015342,2]
[401057958,1767895847440,-921.00515568,0.00015342,2]
[401057960,1767895847452,-2003.80919542,0.00015342,2]
[401057962,1767895847463,-1700.34918809,0.00015342,2]
[401057964,1767895847472,-2000.0,0.00015342,2]
[401057966,1767895847481,-1108.00999349,0.00015342,2]
[401057968,1767895847492,-2000.0,0.00015342,2]
[401057970,1767895847501,-2000.0,0.00015342,2]
[401057972,1767895847512,-2500.0,0.00015464,2]
[401057974,1767895847522,-1010.32213921,0.00015464,2]
[401057976,1767895847533,-2500.0,0.00015464,2]
[401057978,1767895847545,-506.74415815,0.00015464,2]
[401057980,1767895847557,-2500.0,0.00015464,2]
[401057982,1767895847568,-2454.68786097,0.00015464,2]
[401057984,1767895847578,-2500.0,0.00015464,2]
[401057986,1767895847589,-2500.0,0.00015464,2]
[401057988,1767895847600,-2500.0,0.00015464,2]
[401057990,1767895847612,-2500.0,0.00015464,2]
[401057993,1767895847623,-1896.00511375,0.00015464,2]
[401057994,1767895847634,-1869.5151472,0.00015464,2]
[401057996,1767895847647,-2500.0,0.00015464,2]
[401057998,1767895847657,-1000.0,0.000156,2]
[401058000,1767895847669,-32261.07,0.0001574,2]
[401058002,1767895847681,-151.0,0.0001574,2]
[401058005,1767895847695,-201.93286099,0.0001574,2]
[401058007,1767895847706,-2674.60743027,0.0001574,2]
[401058009,1767895847717,-553.64373807,0.0001574,2]
[401058011,1767895847727,-5439.05122137,0.0001579,2]
[401058013,1767895847738,-2258.0,0.00015833,2]
[401058015,1767895847750,-9035.0,0.00015833,2]
[401058017,1767895847763,-1500.0,0.00015864,2]
[401058019,1767895847773,-2586.48750274,0.0001589,2]
[401058021,1767895847785,-338.23457806,0.0001589,2]
[401058023,1767895847796,-1409.51288327,0.0001589,2]
[401058025,1767895847806,-2046.66896035,0.0001589,2]
[401058027,1767895847819,-2145.40081224,0.0001589,2]
[401058029,1767895847830,-2500.0,0.0001589,2]
[401058031,1767895847840,-594.37321714,0.0001589,2]
[401058033,1767895847851,-2500.0,0.0001589,2]
[401058035,1767895847861,-1138.28627856,0.0001589,2]
[401058037,1767895847872,-2500.0,0.0001589,2]
[401058039,1767895847885,-644.01857865,0.0001589,2]
[401058041,1767895847895,-1634.65901332,0.0001589,2]
[401058043,1767895847907,-2500.0,0.0001589,2]
[401058045,1767895847918,-2500.0,0.0001589,2]
[401058048,1767895847929,-8597.35319662,0.00015987,2]
[401058049,1767895847939,-3000.0,0.00016012,2]
[401058051,1767895847949,-3000.0,0.00016012,2]
[401058054,1767895847960,-3000.0,0.00016012,2]
[401058056,1767895847972,-1869.1892099,0.00016012,2]
[401058058,1767895847983,-1410.05192145,0.00016012,2]
[401058060,1767895847994,-3000.0,0.00016012,2]
[401058062,1767895848005,-3000.0,0.00016012,2]
[401058064,1767895848017,-2002.92123591,0.00016012,2]
[401058066,1767895848028,-1600.0,0.00016164,2]
[401058068,1767895848039,-947.31967312,0.00016288,2]
[401058070,1767895848050,-33454.72959,0.00016288,2]
[401058072,1767895848061,-151.0,0.00016288,2]
[401058074,1767895848072,-209.40437684,0.00016288,2]
[401058076,1767895848082,-2773.56790519,0.00016288,2]
[401058078,1767895848093,-1000.0,0.00016338,2]
[401058080,1767895848103,-791.0,0.00016338,2]
[401058082,1767895848115,-1800.0,0.00016412,2]
[401058084,1767895848126,-500.0,0.00016438,2]
[401058087,1767895848137,-594.35152189,0.00016438,2]
[401058089,1767895848149,-164.10892372,0.00016438,2]
[401058091,1767895848160,-3026.70356569,0.00016438,2]
[401058092,1767895848171,-3071.48096018,0.00016438,2]
[401058095,1767895848182,-3000.0,0.00016438,2]
[401058097,1767895848193,-3000.0,0.00016438,2]
[401058099,1767895848205,-3000.0,0.00016438,2]
[401058101,1767895848215,-260.00260822,0.00016438,2]
[401058103,1767895848226,-200.0,0.00016473,2]
[401058105,1767895848237,-3500.0,0.0001656,2]
[401058107,1767895848248,-3500.0,0.0001656,2]
[401058109,1767895848261,-1635.36885064,0.0001656,2]
[401058111,1767895848272,-3500.0,0.0001656,2]
[401058113,1767895848285,-3500.0,0.0001656,2]
[401058115,1767895848295,-5000.0,0.00016632,2]
[401058117,1767895848307,-6360.07492473,0.00016687,2]
[401058119,1767895848317,-4375.75049422,0.00016806,2]
[401058121,1767895848330,-3973.08818996,0.00016811,2]
[401058123,1767895848341,-34692.55458483,0.00016836,2]
[401058125,1767895848353,-151.0,0.00016836,2]
[401058127,1767895848366,-217.15233878,0.00016836,2]
[401058129,1767895848377,-2876.18991768,0.00016836,2]
[401058132,1767895848388,-2100.0,0.0001696,2]
[401058134,1767895848398,-3500.0,0.00016986,2]
[401058136,1767895848410,-3500.0,0.00016986,2]
[401058138,1767895848422,-3500.0,0.00016986,2]
[401058140,1767895848433,-4000.0,0.00017108,2]
[401058142,1767895848445,-4000.0,0.00017108,2]
[401058144,1767895848457,-4000.0,0.00017108,2]
[401058146,1767895848469,-509.97635533,0.00017108,2]
[401058148,1767895848481,-2400.0,0.0001726,2]
[401058150,1767895848492,-35976.17910447,0.00017384,2]
[401058152,1767895848504,-151.0,0.00017384,2]
[401058154,1767895848517,-357.36398593,0.00017384,2]
[401058157,1767895848528,-2982.60894464,0.00017384,2]
[401058159,1767895848539,-3162.0,0.00017417,2]
[401058161,1767895848551,-5763.0,0.00017417,2]
[401058163,1767895848566,-2400.0,0.00017508,2]
[401058165,1767895848577,-4000.0,0.00017534,2]
[401058167,1767895848590,-4000.0,0.00017534,2]
[401058169,1767895848602,-4000.0,0.00017534,2]
[401058171,1767895848612,-498.72100815,0.00017656,2]
[401058173,1767895848623,-2481.03860106,0.00017656,2]
[401058175,1767895848635,-4500.0,0.00017656,2]
[401058177,1767895848646,-780.44,0.000177,2]
[401058179,1767895848657,-479.78804727,0.00017842,2]
[401058181,1767895848669,-37307.29773133,0.00017932,2]
[401058183,1767895848680,-294.36088308,0.00017932,2]
[401058185,1767895848691,-3092.96547559,0.00017932,2]
[401058187,1767895848701,-1000.0,0.00017972,2]
[401058189,1767895848712,-1000.0,0.00017972,2]
[401058191,1767895848724,-5000.0,0.00018018,2]
[401058193,1767895848735,-1507.44944301,0.00018056,2]
[401058195,1767895848745,-4500.0,0.00018082,2]
[401058197,1767895848757,-4500.0,0.00018082,2]
[401058199,1767895848769,-4500.0,0.00018082,2]
[401058201,1767895848779,-5439.05122134,0.00018187,2]
[401058204,1767895848793,-5000.0,0.00018204,2]
[401058206,1767895848805,-1899.64931956,0.00018356,2]
[401058208,1767895848817,-38687.66774739,0.0001848,2]
[401058210,1767895848827,-3207.40519818,0.0001848,2]
[401058212,1767895848838,-648.777651,0.00018493,2]
[401058214,1767895848849,-2395.64095761,0.0001863,2]
[401058216,1767895848861,-5000.0,0.0001863,2]
[401058218,1767895848873,-5000.0,0.0001863,2]
[401058219,1767895848885,-5500.0,0.00018752,2]
[401058220,1767895848896,-4815.37279539,0.000189,2]
[401058221,1767895848909,-303.08788973,0.000189,2]
[401058222,1767895848921,-10171.5837719,0.00019028,2]
[401058223,1767895848932,-3326.07919052,0.00019028,2]
[401058224,1767895848943,-303.08788973,0.00019089,2]
[401058225,1767895848953,-157.19474322,0.00019123,3]
[401058226,1767895848963,-4427.0,0.00019158,2]
[401058227,1767895848974,-2000.0,0.00019178,7]
[401058228,1767895848985,-1167.21136956,0.00019178,2]
[401058229,1767895848996,-5500.0,0.00019178,2]
[401058230,1767895849008,-163.27,0.000192,2]
[401058231,1767895849018,-164.69,0.000192,2]
[401058232,1767895849029,-167.4,0.000192,2]
[401058233,1767895849040,-303.08788973,0.00019278,2]
[401058234,1767895849051,-1502.08,0.000193,2]
[401058235,1767895849062,-20550.55,0.000193,2]
[401058236,1767895849073,-2031.92126105,0.000193,2]
[401058237,1767895849084,-303.08788973,0.00019467,2]
[401058238,1767895849094,-6320.08765596,0.00019487,2]
[401058239,1767895849106,-303.08788973,0.00019656,2]
[401058240,1767895849116,-202.0,0.00019671,3]
[401058241,1767895849128,-6000.0,0.00019726,2]
[401058242,1767895849139,-1000.0,0.00019769,2]
[401058243,1767895849149,-1000.0,0.00019769,2]
[401058244,1767895849159,-579.0,0.00019769,2]
[401058245,1767895849168,-454.63183459,0.00019845,4]
[401058246,1767895849179,-810.2,0.00019894,2]
[401058247,1767895849189,-172.18674375,0.00019987,2]
[401058248,1767895849198,-1003.0,0.0002,2]
[401058249,1767895849208,-300.26582625,0.0002,2]
[401058250,1767895849218,-160.18626186,0.00020017,2]
[401058251,1767895849227,-454.63183459,0.00020034,4]
[401058252,1767895849237,-802.57879923,0.00020037,13]
[401058253,1767895849247,-1041.66666667,0.0002014,2]
[401058254,1767895849258,-160.0,0.0002014,2]
[401058255,1767895849269,-2000.0,0.00020219,7]
[401058256,1767895849279,-454.63183459,0.00020223,4]
[401058257,1767895849293,-6500.0,0.00020274,2]
[401058258,1767895849303,-454.63183459,0.00020412,4]
[401058259,1767895849313,-2881.087546,0.00020548,2]
[401058260,1767895849323,-5439.05122134,0.00020584,2]
[401058261,1767895849335,-454.70762244,0.00020601,4]
[401058262,1767895849345,-204.0,0.00020767,3]
[401058263,1767895849357,-7000.0,0.00020822,2]
[401058264,1767895849368,-987.26,0.00021,7]
[401058265,1767895849380,-6198.0,0.00021074,2]
[401058266,1767895849390,-164.69,0.000211,2]
[401058267,1767895849401,-163.27,0.000211,2]
[401058268,1767895849411,-810.2,0.00021104,2]
[401058269,1767895849421,-802.57879923,0.00021174,15]
[401058270,1767895849438,-2000.0,0.0002126,7]
[401058271,1767895849449,-2884.88182039,0.0002137,2]
[401058272,1767895849460,-1000.0,0.00021746,10]
[401058273,1767895849471,-1000.0,0.00021746,10]
[401058274,1767895849484,-1000.0,0.00021746,10]
[401058275,1767895849494,-206.0,0.00021863,5]
[401058276,1767895849505,-648.777651,0.00021918,2]
[401058277,1767895849516,-151.17138734,0.00021918,2]
[401058279,1767895849526,-875.15,0.00022,7]
[401058281,1767895849536,-2000.0,0.00022301,7]
[401058282,1767895849547,-802.57879923,0.00022311,16]
[401058283,1767895849558,-810.2,0.00022313,2]
[401058284,1767895849569,-2000.51544348,0.00022413,2]
[401058286,1767895849580,-207.0,0.00022959,8]
[401058288,1767895849592,-5439.05122134,0.00022981,2]
[401058290,1767895849604,-530.0,0.00023181,2]
[401058291,1767895849615,-429.72,0.000232,2]
[401058293,1767895849626,-1502.08,0.000232,14]
[401058295,1767895849637,-20550.55,0.000232,2]
[401058297,1767895849648,-2000.0,0.00023342,7]
[401058299,1767895849659,-802.57879923,0.00023448,17]
[401058301,1767895849669,-810.2,0.00023523,2]
[401058303,1767895849680,-5000.0,0.00023858,2]
[401058304,1767895849691,-1000.0,0.00023921,10]
[401058305,1767895849702,-1000.0,0.00023921,10]
[401058306,1767895849714,-1000.0,0.00023921,10]
[401058308,1767895849725,-715.0,0.00023921,10]
[401058310,1767895849735,-1041.66666667,0.00024,7]
[401058312,1767895849747,-209.0,0.00024055,12]
[401058313,1767895849759,-2000.0,0.00024383,7]
[401058315,1767895849770,-802.57879923,0.00024585,19]
[401058317,1767895849781,-248.949077,0.00024658,2]
[401058319,1767895849793,-248.949077,0.00024658,2]
[401058321,1767895849805,-209.694433,0.00024658,2]
[401058323,1767895849816,-248.949077,0.00024658,2]
[401058325,1767895849828,-248.949077,0.00024658,2]
[401058326,1767895849839,-2391.210697,0.00024658,2]
[401058327,1767895849850,-2391.210697,0.00024658,2]
[401058328,1767895849861,-2391.210697,0.00024658,2]
[401058329,1767895849873,-151.0,0.00024658,2]
[401058330,1767895849885,-2391.210697,0.00024658,2]
[401058331,1767895849897,-151.0,0.00024658,2]
[401058332,1767895849908,-151.0,0.00024658,2]
[401058333,1767895849919,-151.0,0.00024658,2]
[401058334,1767895849931,-151.0,0.00024658,2]
[401058335,1767895849943,-151.0,0.00024658,2]
[401058336,1767895849954,-151.0,0.00024658,2]
[401058337,1767895849965,-500.0,0.00024658,2]
[401058338,1767895849975,-3000.0,0.000247,2]
[401058339,1767895849986,-875.15,0.000247,7]
[401058340,1767895849999,-151.0,0.000247,7]
[401058341,1767895850012,-151.0,0.000247,2]
[401058342,1767895850024,-151.0,0.000247,7]
[401058343,1767895850035,-151.0,0.000247,7]
[401058344,1767895850045,-179.188398,0.000247,7]
[401058345,1767895850057,-151.0,0.000247,7]
[401058346,1767895850067,-151.58214,0.000247,7]
[401058347,1767895850078,-262.112916,0.000247,7]
[401058348,1767895850091,-151.0,0.000247,7]
[401058349,1767895850103,-191.094302,0.000247,7]
[401058350,1767895850115,-151.0,0.000247,7]
[401058351,1767895850126,-191.094302,0.000247,7]
[401058352,1767895850138,-151.0,0.000247,7]
[401058353,1767895850149,-191.094302,0.000247,7]
[401058354,1767895850159,-151.0,0.000247,7]
[401058355,1767895850170,-191.094302,0.000247,7]
[401058356,1767895850182,-182.749737,0.000247,7]
[401058357,1767895850193,-182.749737,0.000247,7]
[401058358,1767895850204,-182.749737,0.000247,7]
[401058359,1767895850214,-182.749737,0.000247,7]
[401058360,1767895850224,-3000.0,0.0002471,2]
[401058361,1767895850235,-3000.0,0.0002472,2]
[401058362,1767895850246,-3000.0,0.0002473,2]
[401058363,1767895850256,-810.2,0.00024733,2]
[401058364,1767895850269,-3000.0,0.0002474,2]
[401058365,1767895850280,-3000.0,0.0002475,2]
[401058366,1767895850294,-3000.0,0.0002476,2]
[401058367,1767895850307,-6320.08765596,0.00024762,2]
[401058368,1767895850317,-3000.0,0.0002477,2]
[401058369,1767895850331,-3000.0,0.0002478,2]
[401058370,1767895850342,-3000.0,0.0002479,2]
[401058371,1767895850354,-3000.0,0.000248,2]
[401058372,1767895850365,-151.0,0.000248,7]
[401058373,1767895850377,-151.0,0.000248,7]
[401058374,1767895850388,-415601.364059,0.000248,2]
[401058375,1767895850399,-3000.0,0.0002481,2]
[401058376,1767895850410,-3000.0,0.0002482,2]
[401058377,1767895850421,-3000.0,0.0002483,2]
[401058378,1767895850433,-3000.0,0.0002484,2]
[401058379,1767895850444,-3000.0,0.0002485,2]
[401058380,1767895850455,-3000.0,0.0002486,2]
[401058381,1767895850466,-3000.0,0.0002487,2]
[401058382,1767895850477,-3000.0,0.0002488,2]
[401058383,1767895850489,-3000.0,0.0002489,2]
[401058384,1767895850500,-3000.0,0.000249,2]
[401058385,1767895850513,-164.69,0.000249,7]
[401058386,1767895850524,-163.27,0.000249,7]
[401058387,1767895850535,-151.0,0.000249,7]
[401058388,1767895850545,-298.474692,0.000249,7]
[401058389,1767895850559,-151.0,0.000249,7]
[401058390,1767895850570,-288.938246,0.000249,7]
[401058391,1767895850581,-151.0,0.000249,7]
[401058392,1767895850592,-151.0,0.000249,7]
[401058393,1767895850603,-151.0,0.000249,7]
[401058394,1767895850613,-151.0,0.000249,7]
[401058395,1767895850623,-151.0,0.000249,7]
[401058396,1767895850634,-151.0,0.000249,7]
[401058397,1767895850644,-151.0,0.000249,7]
[401058398,1767895850655,-151.0,0.000249,7]
[401058399,1767895850666,-151.0,0.000249,7]
[401058400,1767895850678,-151.0,0.000249,7]
[401058401,1767895850688,-151.0,0.000249,7]
[401058402,1767895850700,-465.027669,0.000249,7]
[401058403,1767895850710,-465.027669,0.000249,7]
[401058404,1767895850721,-465.027669,0.000249,7]
[401058405,1767895850732,-465.027669,0.000249,7]
[401058406,1767895850743,-210.013186,0.000249,7]
[401058407,1767895850755,-151.0,0.000249,7]
[401058408,1767895850767,-151.0,0.000249,7]
[401058409,1767895850779,-151.0,0.000249,7]
[401058410,1767895850790,-625.10994,0.000249,7]
[401058411,1767895850802,-625.10994,0.000249,7]
[401058412,1767895850942,-625.10994,0.000249,7]
[401058413,1767895850953,-625.10994,0.000249,7]
[401058414,1767895850964,-151.0,0.000249,7]
[401058415,1767895850975,-151.0,0.000249,7]
[401058417,1767895850985,-189.075092,0.000249,7]
[401058419,1767895850996,-189.075092,0.000249,7]
[401058421,1767895851009,-189.075092,0.000249,7]
[401058423,1767895851019,-189.075092,0.000249,7]
[401058425,1767895851030,-172.705914,0.000249,7]
[401058427,1767895851041,-172.705914,0.000249,7]
[401058429,1767895851052,-172.705914,0.000249,7]
[401058430,1767895851063,-172.705914,0.000249,7]
[401058431,1767895851074,-388.092813,0.000249,7]
[401058433,1767895851085,-388.092813,0.000249,7]
[401058435,1767895851096,-388.092813,0.000249,7]
[401058437,1767895851107,-388.092813,0.000249,7]
[401058438,1767895851117,-289.370538,0.000249,7]
[401058439,1767895851128,-289.370538,0.000249,7]
[401058440,1767895851138,-151.0,0.000249,7]
[401058441,1767895851149,-289.370538,0.000249,7]
[401058443,1767895851159,-289.370538,0.000249,7]
[401058444,1767895851170,-151.0,0.000249,7]
[401058445,1767895851181,-184.679172,0.000249,7]
[401058446,1767895851191,-151.0,0.000249,7]
[401058447,1767895851203,-151.0,0.000249,7]
[401058449,1767895851214,-151.0,0.000249,7]
[401058451,1767895851225,-622.20825,0.000249,7]
[401058453,1767895851235,-622.20825,0.000249,7]
[401058454,1767895851246,-622.20825,0.000249,7]
[401058455,1767895851258,-622.20825,0.000249,7]
[401058456,1767895851268,-303.930909,0.000249,7]
[401058457,1767895851278,-303.930909,0.000249,7]
[401058458,1767895851292,-303.930909,0.000249,7]
[401058459,1767895851302,-303.930909,0.000249,7]
[401058460,1767895851313,-1222.595979,0.000249,7]
[401058461,1767895851325,-522.121584,0.000249,7]
[401058462,1767895851336,-1222.595979,0.000249,7]
[401058463,1767895851346,-522.121584,0.000249,7]
[401058464,1767895851357,-522.121584,0.000249,7]
[401058466,1767895851370,-1222.595979,0.000249,7]
[401058468,1767895851382,-522.121584,0.000249,7]
[401058469,1767895851392,-1222.595979,0.000249,7]
[401058470,1767895851404,-151.0,0.000249,7]
[401058471,1767895851416,-151.0,0.000249,7]
[401058472,1767895851427,-151.0,0.000249,7]
[401058473,1767895851437,-183.558633,0.000249,7]
[401058474,1767895851447,-183.558633,0.000249,7]
[401058475,1767895851458,-183.558633,0.000249,7]
[401058476,1767895851470,-183.558633,0.000249,7]
[401058477,1767895851481,-151.0,0.000249,7]
[401058478,1767895851492,-26821.7099224,0.000249,2]
[401058479,1767895851503,-757.340513,0.000249,7]
[401058480,1767895851515,-757.340513,0.000249,7]
[401058481,1767895851526,-341.324064,0.000249,7]
[401058482,1767895851537,-757.340513,0.000249,7]
[401058483,1767895851548,-341.324064,0.000249,7]
[401058484,1767895851559,-757.340513,0.000249,7]